bitfinex/quotes_SOLUSD_20241118
["timestamp","ask_amount","ask_price","bid_price","bid_amount"]
[1731899010110,9.98465745,239.88,239.86,0.25098]
[1731899010316,16.01588332,239.88,239.86,0.12549]
[1731899010829,16.01588332,239.88,239.86,0.09367462]
[1731899011037,15.9874,239.87,239.78,38.50494185]
[1731899011230,16.01588332,239.79,239.73,12.78941235]
[1731899011434,16.01588332,239.85,239.77,16.01588332]
[1731899011724,15.9874,239.87,239.77,16.01588332]
[1731899011725,15.9874,239.87,239.81,0.09367462]
[1731899011926,16.01588332,239.88,239.81,0.09367462]
[1731899012145,16.01588332,239.9,239.83,0.09367462]
[1731899012344,16.01588332,239.9,239.83,0.21916462]
[1731899012726,16.01588332,239.92,239.85,0.21916462]
[1731899012939,15.9874,239.93,239.9,0.12549]
[1731899013434,16.01588332,239.92,239.9,0.12549]
[1731899013754,15.9874,239.93,239.89,0.21916462]
[1731899014152,15.9874,239.93,239.82,28.82394363]
[1731899014153,16.01588332,239.9,239.82,28.82394363]
[1731899014487,16.01588332,239.9,239.83,0.25098]
[1731899014623,16.01588332,239.9,239.84,0.09367462]
[1731899015330,16.01588332,239.96,239.88,16.10955794]
[1731899015521,43.24068332,239.99,239.94,0.09367462]
[1731899015724,31.39718332,239.99,239.96,0.21916462]
[1731899015923,16.01588332,240.01,239.96,0.12549]
[1731899016138,16.01588332,240.03,239.96,0.12549]
[1731899016332,16.01588332,240.03,239.99,0.21916462]
[1731899016536,16.01588332,240.01,239.97,0.34465462]
[1731899016829,16.01588332,239.99,239.93,0.12549]
[1731899017029,16.01588332,239.97,239.93,0.12549]
[1731899017541,16.01588332,239.97,239.94,0.09367462]
[1731899018133,16.01588332,239.97,239.93,0.09367462]
[1731899018931,16.7982,240.05,239.93,0.09367462]
[1731899018932,16.01588332,239.99,239.93,0.09367462]
[1731899019144,16.7982,240.05,239.94,0.12549]
[1731899019145,16.01588332,240.01,239.94,0.12549]
[1731899019354,16.01588332,240.03,239.95,0.21916462]
[1731899019653,16.01588332,240.03,239.97,0.21916462]
[1731899019871,16.01588332,240.03,239.99,0.09367462]
[1731899020165,16.01588332,240.03,240.0,0.12549]
[1731899020657,12.146,240.06,240.03,0.21916462]
[1731899020952,16.0558834,240.11,240.03,0.21916462]
[1731899021951,16.0558834,240.11,240.05,0.09367462]
[1731899022144,0.04000008,240.11,240.06,16.14137332]
[1731899023153,0.04000008,240.11,240.09,0.21916462]
[1731899023461,0.04000008,240.11,240.1,16.36053794]
[1731899024741,16.01588332,240.19,240.11,0.25098]
[1731899024944,16.01588332,240.19,240.14,0.09367462]
[1731899025161,16.01588332,240.23,240.17,0.12549]
[1731899025337,16.01588332,240.23,240.17,0.25098]
[1731899025657,16.01588332,240.19,240.13,0.25098]
[1731899025834,16.01588332,240.17,240.08,16.01588332]
[1731899026034,16.01588332,240.15,240.09,0.25098]
[1731899026234,16.01588332,240.13,240.05,12.80806031]
[1731899026450,16.01588332,240.09,240.02,12.80806031]
[1731899026654,16.01588332,240.07,240.0,28.82394363]
[1731899026859,16.01588332,240.07,240.01,0.09367462]
[1731899027638,16.01588332,240.07,240.0,16.01588332]
[1731899027845,16.01588332,240.07,240.01,0.25098]
[1731899028351,23.876884,240.17,240.03,0.25098]
[1731899028557,16.01588332,240.09,240.03,0.25098]
[1731899028761,16.01588332,240.09,240.04,0.09367462]
[1731899030470,16.01588332,240.05,239.99,12.80806031]
[1731899030641,16.01588332,240.03,239.97,12.80806031]
[1731899030846,16.01588332,240.01,239.94,12.80806031]
[1731899031148,16.01588332,239.99,239.91,38.52358981]
[1731899031364,16.01588332,240.01,239.92,28.82394363]
[1731899031550,16.01588332,240.01,239.94,16.01588332]
[1731899031874,12.146,240.1,240.01,0.09367462]
[1731899032161,12.146,240.1,240.03,16.01588332]
[1731899033157,28.43418332,240.15,240.06,0.34465462]
[1731899033366,28.43418332,240.15,240.08,16.01588332]
[1731899034045,12.4183,240.15,240.08,16.01588332]
[1731899035155,28.43418332,240.15,240.08,16.01588332]
[1731899035666,12.4183,240.15,240.08,16.01588332]
[1731899035846,16.01588332,240.17,240.09,0.34465462]
[1731899036162,29.9739,240.18,240.11,0.34465462]
[1731899036374,28.43418332,240.21,240.13,0.09367462]
[1731899036666,16.01588332,240.21,240.13,0.34465462]
[1731899037162,16.01588332,240.23,240.14,16.01588332]
[1731899037378,16.01588332,240.23,240.15,0.34465462]
[1731899037964,16.01588332,240.23,240.08,0.1]
[1731899037965,16.01588332,240.21,240.13,0.25098]
[1731899038159,16.01588332,240.21,240.14,0.21916462]
[1731899038952,16.01588332,240.21,240.14,16.23504794]
[1731899039165,16.01588332,240.23,240.14,16.23504794]
[1731899039556,23.776884,240.22,240.14,16.23504794]
[1731899039967,16.01588332,240.23,240.15,0.12549]
[1731899040276,45.98978332,240.25,240.17,0.34465462]
[1731899040469,16.01588332,240.23,240.15,0.21916462]
[1731899040855,16.01588332,240.19,240.1,16.01588332]
[1731899041067,16.01588332,240.19,240.12,0.09367462]
[1731899041568,23.776884,240.24,240.09,0.25098]
[1731899041569,16.01588332,240.17,240.09,0.25098]
[1731899041784,16.01588332,240.19,240.13,0.21916462]
[1731899042073,16.01588332,240.19,240.14,0.12549]
[1731899042847,16.01588332,240.23,240.15,0.21916462]
[1731899043272,16.01588332,240.21,240.13,0.12549]
[1731899043470,16.01588332,240.21,240.13,0.25098]
[1731899043680,16.01588332,240.21,240.14,0.21916462]
[1731899043974,16.01588332,240.21,240.15,0.12549]
[1731899044854,16.01588332,240.19,240.1,16.01588332]
[1731899045285,16.01588332,240.19,240.11,0.09367462]
[1731899045854,16.01588332,240.19,240.1,6.10955794]
[1731899046173,16.01588332,240.18,240.1,0.25098]
[1731899047992,16.01588332,240.16,240.1,0.25098]
[1731899048357,23.776884,240.23,240.1,0.25098]
[1731899048358,16.01588332,240.18,240.11,0.09367462]
[1731899048557,29.9739,240.25,240.18,0.12549]
[1731899048758,16.01588332,240.24,240.16,16.01588332]
[1731899049055,16.01588332,240.22,240.15,0.12549]
[1731899049455,16.01588332,240.22,240.15,0.25098]
[1731899050495,16.01588332,240.22,240.16,0.09367462]
[1731899050785,16.01588332,240.24,240.16,0.09367462]
[1731899051365,16.01588332,240.24,240.18,0.09367462]
[1731899051575,28.43418332,240.26,240.18,0.09367462]
[1731899051771,16.01588332,240.26,240.18,0.09367462]
[1731899052781,16.01588332,240.26,240.18,0.06332462]
[1731899052992,16.01588332,240.22,240.15,0.25098]
[1731899053195,16.01588332,240.22,240.13,0.25098]
[1731899053479,16.01588332,240.22,240.15,0.12549]
[1731899053856,16.01588332,240.22,240.15,0.25098]
[1731899054889,16.01588332,240.22,240.16,0.09367462]
[1731899055386,16.01588332,240.22,240.17,0.12549]
[1731899056782,16.01588332,240.19,240.1,45.70118332]
[1731899057087,16.01588332,240.15,240.07,12.80806031]
[1731899057373,16.01588332,240.15,240.06,22.48345814]
[1731899057575,16.01588332,240.13,240.06,6.46757482]
[1731899057780,16.01588332,240.13,240.07,0.09367462]
[1731899057985,16.01588332,240.13,240.06,6.46757482]
[1731899058278,11.8625,240.19,240.11,0.09367462]
[1731899058279,27.87838332,240.19,240.11,0.09367462]
[1731899058784,16.01588332,240.19,240.11,0.34465462]
[1731899058963,16.01588332,240.21,240.13,0.34465462]
[1731899059503,16.01588332,240.23,240.15,0.34465462]
[1731899060063,16.01588332,240.17,240.05,38.56358981]
[1731899060259,16.01588332,240.12,240.05,0.04]
[1731899060663,16.01588332,240.1,240.05,0.04]
[1731899061287,16.01588332,240.12,240.07,0.25098]
[1731899061673,16.01588332,240.12,240.08,0.09367462]
[1731899062485,16.01588332,240.14,240.08,0.09367462]
[1731899063466,16.01588332,240.14,240.07,6.76465065]
[1731899063669,27.939884,240.21,240.07,6.76465065]
[1731899063670,16.01588332,240.12,240.07,6.76465065]
[1731899064269,27.939884,240.21,240.07,6.76465065]
[1731899064270,16.01588332,240.14,240.07,6.76465065]
[1731899064785,16.01588332,240.14,240.08,0.09367462]
[1731899065777,16.01588332,240.16,240.08,0.09367462]
[1731899065981,16.01588332,240.1,240.07,19.32173096]
[1731899066284,16.01588332,240.08,240.07,6.51367065]
[1731899066673,16.01588332,240.08,240.05,12.84806031]
[1731899066875,16.01588332,240.06,240.05,0.04]
[1731899070572,12.4056,240.02,239.94,12.80806031]
[1731899070777,16.01588332,239.95,239.93,12.80806031]
[1731899071274,16.01588332,239.95,239.92,19.32733323]
[1731899071584,16.01588332,239.95,239.92,6.51927292]
[1731899072090,16.01588332,239.95,239.93,0.25098]
[1731899072403,16.01588332,239.95,239.86,69.16179426]
[1731899072404,16.01588332,239.95,239.87,12.80806031]
[1731899072708,16.01588332,239.94,239.87,12.90173493]
[1731899072873,16.01588332,239.94,239.89,0.09367462]
[1731899074080,16.01588332,239.94,239.9,0.12549]
[1731899074481,16.01588332,239.92,239.88,6.51935499]
[1731899074697,16.01588332,239.9,239.88,6.51935499]
[1731899074898,16.01588332,239.9,239.88,167.81935499]
[1731899076101,16.01588332,239.9,239.89,0.12549]
[1731899076493,16.01588332,239.9,239.88,167.81935499]
[1731899076691,16.01588332,239.9,239.88,161.3]
[1731899080594,16.11588332,239.9,239.88,161.3]
[1731899081305,16.11588332,239.89,239.88,161.3]
[1731899081802,0.1,239.85,239.7,16.01588332]
[1731899082033,16.01588332,239.76,239.7,161.3]
[1731899082192,16.01588332,239.76,239.71,6.5271253]
[1731899082511,16.01588332,239.72,239.71,167.8271253]
[1731899083084,16.01588332,239.74,239.71,167.8271253]
[1731899083688,16.01588332,239.76,239.71,167.8271253]
[1731899084208,16.01588332,239.76,239.72,0.12549]
[1731899084600,16.01588332,239.76,239.72,161.42549]
[1731899086216,16.01588332,239.74,239.71,6.5271253]
[1731899086899,16.01588332,239.8,239.72,16.26686332]
[1731899088409,16.01588332,239.8,239.74,0.12549]
[1731899088615,16.01588332,239.8,239.74,0.25098]
[1731899089700,160.2,239.81,239.74,16.26686332]
[1731899089902,16.01588332,239.82,239.74,16.26686332]
[1731899092494,16.01588332,239.84,239.77,0.25098]
[1731899093010,16.01588332,239.88,239.79,0.25098]
[1731899093622,16.01588332,239.89,239.81,0.12549]
[1731899094721,16.01588332,239.89,239.81,0.25098]
[1731899095822,16.01588332,239.93,239.85,0.25098]
[1731899096017,16.01588332,239.86,239.8,0.12549]
[1731899096319,16.01588332,239.84,239.8,0.12549]
[1731899097697,16.01588332,239.82,239.73,16.01588332]
[1731899098399,16.01588332,239.78,239.72,6.52101163]
[1731899098611,16.01588332,239.8,239.72,6.52101163]
[1731899098900,41.7192,239.89,239.79,16.01588332]
[1731899099097,41.7192,239.89,239.82,16.01588332]
[1731899099305,16.01588332,239.91,239.82,16.01588332]
[1731899099818,16.01588332,239.89,239.81,0.25098]
[1731899101920,16.01588332,239.96,239.88,0.12549]
[1731899102297,16.01588332,239.94,239.86,0.12549]
[1731899102499,16.01588332,239.94,239.88,0.25098]
[1731899102715,16.01588332,239.96,239.88,0.25098]
[1731899103027,160.2,239.98,239.91,16.01588332]
[1731899103409,160.2,239.98,239.92,0.12549]
[1731899103720,176.21588332,240.02,239.96,16.01588332]
[1731899103926,16.01588332,240.06,239.98,16.01588332]
[1731899104597,160.2,240.07,240.0,16.01588332]
[1731899104927,16.01588332,240.08,240.01,0.12549]
[1731899105308,16.01588332,240.1,240.02,16.01588332]
[1731899105522,16.01588332,240.1,240.03,0.25098]
[1731899105822,16.01588332,240.12,240.03,0.25098]
[1731899106429,16.01588332,240.12,240.05,0.12549]
[1731899107302,16.01588332,240.1,240.02,16.01588332]
[1731899107510,16.01588332,240.04,239.99,0.25098]
[1731899107808,16.01588332,240.02,239.94,16.01588332]
[1731899108014,16.01588332,240.0,239.92,47.43428332]
[1731899108224,16.01588332,240.0,239.93,0.09367462]
[1731899109239,16.01588332,240.02,239.93,0.09367462]
[1731899109802,16.01588332,240.02,239.94,16.01588332]
[1731899110028,16.01588332,240.02,239.95,0.25098]
[1731899111727,22.56522832,240.12,239.88,16.01588332]
[1731899111728,16.01588332,239.97,239.88,16.01588332]
[1731899113233,16.01588332,239.91,239.84,16.01588332]
[1731899113421,0.2,239.97,239.82,6.519842]
[1731899113422,16.01588332,239.89,239.82,6.519842]
[1731899113820,160.2,239.98,239.82,6.519842]
[1731899113821,16.01588332,239.87,239.82,6.519842]
[1731899114225,16.01588332,239.85,239.82,6.519842]
[1731899114430,16.01588332,239.85,239.76,28.82394363]
[1731899114615,16.01588332,239.85,239.78,6.52000834]
[1731899114827,16.01588332,239.81,239.78,6.52000834]
[1731899115012,16.01588332,239.79,239.73,12.80806031]
[1731899115216,16.01588332,239.79,239.73,6.52183255]
[1731899117620,16.01588332,239.79,239.74,0.25098]
[1731899118515,176.21588332,239.83,239.74,16.26686332]
[1731899118930,160.2,239.83,239.77,0.25098]
[1731899119838,16.01588332,239.82,239.77,0.25098]
[1731899120046,160.2,239.83,239.73,6.52183255]
[1731899120047,16.01588332,239.78,239.73,6.52183255]
[1731899120218,16.01588332,239.78,239.66,4.7364505]
[1731899120219,16.01588332,239.75,239.66,16.01588332]
[1731899120419,16.01588332,239.7,239.62,16.01588332]
[1731899120619,16.01588332,239.72,239.63,6.5228527]
[1731899120836,16.01588332,239.67,239.63,6.5228527]
[1731899121137,16.01588332,239.65,239.57,16.01588332]
[1731899121326,16.01588332,239.65,239.6,6.52382415]
[1731899123418,176.21588332,239.69,239.61,16.26686332]
[1731899123929,16.01588332,239.69,239.61,16.26686332]
[1731899124424,16.01588332,239.67,239.61,0.12549]
[1731899124833,16.01588332,239.65,239.61,0.12549]
[1731899125029,16.01588332,239.65,239.6,6.52382415]
[1731899126337,16.01588332,239.61,239.51,16.01588332]
[1731899126519,16.01588332,239.56,239.53,6.52476694]
[1731899126721,16.01588332,239.54,239.53,6.52476694]
[1731899127094,16.01588332,239.54,239.43,24.76326031]
[1731899127095,16.01588332,239.54,239.45,6.5266311]
[1731899127249,16.01588332,239.5,239.45,6.5266311]
[1731899127632,16.01588332,239.48,239.45,6.5266311]
[1731899128329,16.01588332,239.5,239.45,6.5266311]
[1731899129343,16.01588332,239.48,239.45,6.5266311]
[1731899129525,16.01588332,239.48,239.4,0.4671542]
[1731899129726,16.01588332,239.46,239.41,6.52537695]
[1731899131433,16.01588332,239.44,239.41,6.52537695]
[1731899131634,1.10545522,239.44,239.41,6.52537695]
[1731899131941,16.01588332,239.42,239.4,0.4671542]
[1731899132322,16.11588332,239.42,239.4,0.4671542]
[1731899132643,184.4769,239.41,239.17,0.4671542]
[1731899132851,16.01588332,239.35,239.3,6.52580293]
[1731899133027,16.01588332,239.33,239.25,16.01588332]
[1731899133229,16.01588332,239.4,239.27,6.52651252]
[1731899133230,16.01588332,239.31,239.27,6.52651252]
[1731899133420,16.01588332,239.29,239.2,16.01588332]
[1731899133735,16.01588332,239.31,239.25,6.52316076]
[1731899133930,16.01588332,239.31,239.22,16.01588332]
[1731899134353,16.01588332,239.31,239.25,6.5230524]
[1731899134531,16.01588332,239.37,239.3,16.01588332]
[1731899134846,16.01588332,239.39,239.3,16.01588332]
[1731899135221,16.01588332,239.39,239.31,0.25098]
[1731899135823,164.4767,239.43,239.25,6.5230524]
[1731899135824,0.1,239.28,239.25,6.5230524]
[1731899136048,0.1,239.24,239.1,16.01588332]
[1731899136260,16.01588332,239.18,239.13,6.51506242]
[1731899137126,16.01588332,239.18,239.06,16.01588332]
[1731899137329,16.01588332,239.18,239.09,6.51792989]
[1731899138738,20.0,239.27,239.13,16.01588332]
[1731899138739,16.01588332,239.2,239.13,16.01588332]
[1731899139138,16.01588332,239.2,239.11,16.01588332]
[1731899140049,16.01588332,239.22,239.18,0.12549]
[1731899141142,16.01588332,239.26,239.19,16.01588332]
[1731899141333,16.01588332,239.26,239.2,0.25098]
[1731899141729,16.01588332,239.3,239.22,0.25098]
[1731899141929,16.01588332,239.3,239.24,0.25098]
[1731899142260,16.01588332,239.32,239.24,0.25098]
[1731899142556,16.01588332,239.3,239.24,0.25098]
[1731899142929,16.01588332,239.32,239.24,0.25098]
[1731899143442,16.01588332,239.3,239.24,0.25098]
[1731899143645,16.01588332,239.28,239.21,16.01588332]
[1731899143853,16.01588332,239.28,239.2,0.25098]
[1731899144035,16.01588332,239.26,239.2,0.25098]
[1731899144451,16.01588332,239.26,239.18,0.34465462]
[1731899144961,16.01588332,239.26,239.2,0.25098]
[1731899145147,16.01588332,239.28,239.21,16.01588332]
[1731899145335,16.01588332,239.28,239.22,0.25098]
[1731899145959,16.01588332,239.32,239.25,16.01588332]
[1731899146136,16.01588332,239.34,239.26,0.25098]
[1731899147337,16.01588332,239.32,239.26,0.25098]
[1731899148049,16.01588332,239.34,239.28,0.25098]
[1731899148346,16.01588332,239.36,239.28,0.25098]
[1731899149273,29.5622,239.4,239.32,0.25098]
[1731899149274,16.01588332,239.4,239.32,0.25098]
[1731899149646,16.01588332,239.4,239.34,0.25098]
[1731899151256,16.01588332,239.4,239.27,16.01588332]
[1731899151257,16.01588332,239.36,239.27,16.01588332]
[1731899151458,16.01588332,239.32,239.26,0.12549]
[1731899151666,16.01588332,239.32,239.25,16.01588332]
[1731899152272,160.2,239.39,239.2,6.52352019]
[1731899152273,160.2,239.39,239.31,16.01588332]
[1731899152972,160.2,239.39,239.32,0.25098]
[1731899153155,16.01588332,239.4,239.32,0.25098]
[1731899153351,29.5622,239.47,239.35,16.10955794]
[1731899153352,16.01588332,239.42,239.35,16.10955794]
[1731899153664,16.01588332,239.44,239.36,0.25098]
[1731899153866,16.01588332,239.42,239.36,0.12549]
[1731899154070,16.01588332,239.4,239.34,0.12549]
[1731899154366,16.01588332,239.4,239.33,16.01588332]
[1731899154580,16.01588332,239.4,239.31,16.01588332]
[1731899154873,16.01588332,239.4,239.32,0.25098]
[1731899156263,16.01588332,239.4,239.27,44.7947]
[1731899156264,16.01588332,239.36,239.27,16.01588332]
[1731899157552,160.2,239.39,239.27,16.01588332]
[1731899157553,16.01588332,239.34,239.28,0.25098]
[1731899157757,16.01588332,239.34,239.26,0.34465462]
[1731899162869,16.01588332,239.36,239.3,0.25098]
[1731899164472,16.01588332,239.36,239.28,0.25098]
[1731899165464,16.01588332,239.3,239.22,6.52400181]
[1731899165777,20.19298332,239.4,239.11,0.1]
[1731899165778,16.01588332,239.26,239.17,16.48303752]
[1731899166086,16.01588332,239.26,239.18,36.5189459]
[1731899166377,16.01588332,239.24,239.19,0.09367462]
[1731899166760,16.01588332,239.24,239.19,0.34465462]
[1731899167661,16.01588332,239.24,239.19,0.25098]
[1731899167863,16.01588332,239.24,239.18,0.34465462]
[1731899168965,16.01588332,239.22,239.17,0.4671542]
[1731899169173,16.01588332,239.2,239.17,0.4671542]
[1731899171061,20.1,239.28,239.17,0.4671542]
[1731899171259,16.01588332,239.21,239.17,0.4671542]
[1731899171690,16.01588332,239.19,239.17,0.4671542]
[1731899171877,63.9159,239.18,239.17,0.4671542]
[1731899172381,79.93178332,239.18,239.17,0.4671542]
[1731899173289,84.11268332,239.18,239.17,0.4671542]
[1731899173468,84.21268332,239.18,239.17,0.4671542]
[1731899174172,0.1,239.14,239.04,6.51302707]
[1731899174380,16.01588332,239.07,239.04,6.51302707]
[1731899174980,16.01588332,239.07,238.98,16.01588332]
[1731899175186,16.01588332,239.07,239.02,6.51413017]
[1731899175368,16.01588332,239.07,238.93,0.4671542]
[1731899175571,16.01588332,239.07,238.99,0.09367462]
[1731899175793,16.01588332,239.07,239.0,6.51843261]
[1731899176093,16.01588332,239.09,239.01,0.09367462]
[1731899176680,16.01588332,239.11,239.03,0.09367462]
[1731899176996,16.01588332,239.11,239.03,0.34465462]
[1731899178395,16.01588332,239.09,239.01,0.25098]
[1731899178573,16.01588332,239.07,239.02,0.09367462]
[1731899179395,16.01588332,239.07,239.01,0.25098]
[1731899179687,16.01588332,239.07,238.98,16.01588332]
[1731899179896,16.01588332,239.07,238.99,6.50976012]
[1731899180890,16.01588332,239.07,238.99,22.52564344]
[1731899181101,16.01588332,239.07,239.0,0.25098]
[1731899182094,16.01588332,239.07,238.99,0.34465462]
[1731899182279,4.1825,239.09,238.99,0.25098]
[1731899182280,16.01588332,239.05,238.99,0.25098]
[1731899182462,16.01588332,239.05,238.98,0.25098]
[1731899182967,16.01588332,239.07,239.01,0.12549]
[1731899183776,16.01588332,239.05,238.99,0.12549]
[1731899184196,16.01588332,239.05,238.98,0.25098]
[1731899185876,16.01588332,239.07,238.98,16.26686332]
[1731899186077,16.01588332,239.07,239.0,16.01588332]
[1731899186490,16.01588332,239.07,238.99,0.09367462]
[1731899186673,16.01588332,239.07,239.0,16.14137332]
[1731899186996,16.01588332,239.07,239.01,0.12549]
[1731899187498,4.1824,239.1,238.99,0.09367462]
[1731899187499,16.01588332,239.11,239.03,0.25098]
[1731899188191,16.01588332,239.14,239.07,0.25098]
[1731899188496,43.9159,239.18,239.07,0.25098]
[1731899188497,16.01588332,239.16,239.08,16.01588332]
[1731899188676,59.93178332,239.18,239.11,0.12549]
[1731899189383,28.28048332,239.18,239.11,0.25098]
[1731899189592,16.01588332,239.18,239.11,0.25098]
[1731899191780,16.01588332,239.16,239.09,0.25098]
[1731899195874,16.01588332,239.18,239.11,0.25098]
[1731899196394,191.2446,239.23,239.04,16.01588332]
[1731899196395,16.01588332,239.22,239.14,16.10955794]
[1731899196703,31.0446,239.23,239.15,0.25098]
[1731899196704,16.01588332,239.2,239.15,0.25098]
[1731899197270,16.01588332,239.2,239.14,0.09367462]
[1731899197597,16.01588332,239.22,239.15,0.25098]
[1731899197983,16.01588332,239.24,239.16,16.10955794]
[1731899198197,16.01588332,239.24,239.17,0.25098]
[1731899198496,16.01588332,239.26,239.18,16.10955794]
[1731899198698,16.01588332,239.26,239.19,0.25098]
[1731899199368,12.0864,239.3,239.2,16.10955794]
[1731899199369,16.01588332,239.28,239.2,16.10955794]
[1731899199572,16.01588332,239.28,239.22,0.09367462]
[1731899199778,16.01588332,239.28,239.23,0.12549]
[1731899199991,16.01588332,239.28,239.23,0.25098]
[1731899200874,16.01588332,239.3,239.23,0.25098]
[1731899201073,30.5249,239.33,239.16,16.01588332]
[1731899201074,16.01588332,239.33,239.26,0.21916462]
[1731899201273,16.01588332,239.33,239.27,0.25098]
[1731899201578,16.01588332,239.35,239.28,16.01588332]
[1731899201776,16.01588332,239.35,239.29,0.25098]
[1731899204182,16.01588332,239.33,239.27,0.25098]
[1731899204377,16.01588332,239.31,239.25,0.25098]
[1731899204683,16.01588332,239.31,239.26,0.21916462]
[1731899204896,16.01588332,239.31,239.27,0.12549]
[1731899205604,16.01588332,239.31,239.25,0.25098]
[1731899206209,16.01588332,239.27,239.18,28.92048332]
[1731899206501,0.1,239.35,239.13,44.4222]
[1731899206502,16.01588332,239.23,239.13,44.4222]
[1731899206801,16.01588332,239.21,239.13,44.4222]
[1731899206975,16.01588332,239.19,239.1,22.52505504]
[1731899207386,16.01588332,239.17,239.1,22.52505504]
[1731899208597,16.01588332,239.19,239.1,22.52505504]
[1731899209580,16.01588332,239.16,239.11,0.09367462]
[1731899209797,16.01588332,239.16,239.11,0.25098]
[1731899209993,4.1803,239.22,239.06,16.01588332]
[1731899209994,16.01588332,239.14,239.06,16.01588332]
[1731899210203,16.01588332,239.14,239.04,16.01588332]
[1731899210385,42.6113,239.2,239.04,6.51102698]
[1731899210386,16.01588332,239.12,239.04,6.51102698]
[1731899210583,0.1,239.19,238.93,0.5671542]
[1731899210584,16.01588332,239.08,238.98,16.01588332]
[1731899210788,16.01588332,239.06,238.96,16.01588332]
[1731899210984,16.01588332,239.06,238.96,22.52667147]
[1731899211280,16.01588332,239.04,238.96,22.52667147]
[1731899211612,16.01588332,239.06,238.99,0.09367462]
[1731899212109,16.01588332,239.06,238.96,6.51078815]
[1731899212110,160.2,239.12,239.0,16.01588332]
[1731899212305,16.01588332,239.11,239.03,0.09367462]
[1731899213281,16.01588332,239.05,238.96,6.51078815]
[1731899213497,16.01588332,239.05,238.97,16.01588332]
[1731899213814,16.01588332,239.16,238.96,6.51078815]
[1731899213815,16.01588332,239.09,239.02,0.09367462]
[1731899214802,16.01588332,239.09,239.02,0.34465462]
[1731899215401,16.01588332,239.15,239.07,16.14137332]
[1731899215704,16.01588332,239.15,239.08,0.12549]
[1731899217489,16.01588332,239.09,239.01,16.01588332]
[1731899217898,16.01588332,239.09,239.02,0.09367462]
[1731899218095,16.01588332,239.11,239.03,16.01588332]
[1731899218692,16.01588332,239.15,239.06,0.09367462]
[1731899218902,16.01588332,239.11,239.03,16.01588332]
[1731899219283,16.01588332,239.11,239.04,0.25098]
[1731899219485,16.01588332,239.09,239.04,0.25098]
[1731899219689,16.01588332,239.09,239.04,0.12549]
[1731899219885,16.01588332,239.09,239.02,0.21916462]
[1731899220289,16.01588332,239.11,239.04,0.12549]
[1731899220488,16.01588332,239.13,239.06,0.12549]
[1731899221088,160.2,239.18,239.04,0.25098]
[1731899221089,16.01588332,239.11,239.04,0.25098]
[1731899221814,16.01588332,239.13,239.05,16.10955794]
[1731899222123,16.01588332,239.15,239.07,0.09367462]
[1731899222695,16.01588332,239.13,239.06,0.25098]
[1731899223492,16.01588332,239.15,239.08,0.25098]
[1731899224091,16.01588332,239.13,239.07,10.4571]
[1731899224509,16.01588332,239.13,239.07,14.6399]
[1731899224709,16.01588332,239.15,239.08,0.12549]
[1731899225099,16.01588332,239.15,239.09,4.1825]
[1731899225614,16.01588332,239.1,238.98,6.51950888]
[1731899225797,16.01588332,239.08,239.02,10.4592]
[1731899225989,16.01588332,239.1,239.03,0.09367462]
[1731899226414,16.01588332,239.1,239.02,26.47508332]
[1731899226911,16.01588332,239.12,239.04,0.09367462]
[1731899227415,16.01588332,239.12,239.06,0.25098]
[1731899228909,16.01588332,239.1,239.03,4.1835]
[1731899229092,16.01588332,239.06,239.0,10.4601]
[1731899229291,16.01588332,239.06,238.98,10.70390888]
[1731899229292,20.19898332,239.06,238.98,10.70390888]
[1731899229508,20.19898332,239.06,238.98,4.1844]
[1731899230017,20.19898332,239.06,238.95,41.9797]
[1731899230018,16.01588332,239.02,238.95,10.4621]
[1731899230221,10.08599012,239.02,238.95,14.647]
[1731899230390,10.08599012,239.02,238.95,10.4621]
[1731899231019,10.08599012,239.02,238.95,14.647]
[1731899231510,10.08599012,239.02,238.96,0.25098]
[1731899231817,14.26979012,239.02,238.95,10.4621]
[1731899232611,16.13852024,239.01,238.95,10.4621]
[1731899233422,16.13852024,238.97,238.93,0.4671542]
[1731899233598,164.384,239.01,238.93,0.4671542]
[1731899233599,16.13852024,238.95,238.93,0.4671542]
[1731899235699,24.1851,238.94,238.93,0.4671542]
[1731899235910,230.5788,238.94,238.93,0.4671542]
[1731899236510,260.5788,238.94,238.93,0.4671542]
[1731899241020,100.4788,238.94,238.93,0.4671542]
[1731899243212,100.3788,238.94,238.93,0.4671542]
[1731899243413,70.4788,238.94,238.93,0.4671542]
[1731899243611,70.3788,238.94,238.93,0.4671542]
[1731899244119,4.1851,238.94,238.93,0.4671542]
[1731899244338,0.1,238.91,238.78,6.51444155]
[1731899244642,16.13852024,238.82,238.73,16.13852024]
[1731899245423,16.13852024,238.82,238.74,0.09367462]
[1731899245635,16.13852024,238.82,238.74,0.34465462]
[1731899246331,16.13852024,238.8,238.73,0.25098]